[Event "*** Titled Tuesday Blitz"]
[Site "Chess.com"]
[Date "2020.02.04"]
[Round "2"]
[White "Rodchenkov_Vitalij"]
[Black "Sjakkerntobi"]
[Result "1-0"]
[WhiteElo "2585"]
[BlackElo "2282"]
[TimeControl "180+2"]
[EndTime "9:22:20 PST"]
[Termination "Rodchenkov_Vitalij won by resignation"]

1. Nf3 {[%clk 0:03:01.9]} 1... c5 {[%clk 0:02:59.4]} 2. g3 {[%clk 0:02:59.6]}
2... Nc6 {[%clk 0:02:58.2]} 3. Bg2 {[%clk 0:02:54.2]} 3... d5 {[%clk 0:02:57.7]}
4. O-O {[%clk 0:02:54.2]} 4... Nf6 {[%clk 0:02:58.3]} 5. d3 {[%clk 0:02:54.4]}
5... e5 {[%clk 0:02:58.3]} 6. Nbd2 {[%clk 0:02:51.5]} 6... Be7 {[%clk
0:02:57.7]} 7. e4 {[%clk 0:02:51.4]} 7... dxe4 {[%clk 0:02:58.3]} 8. dxe4 {[%clk
0:02:51.8]} 8... O-O {[%clk 0:02:55.5]} 9. c3 {[%clk 0:02:49.1]} 9... h6 {[%clk
0:02:43.9]} 10. a4 {[%clk 0:02:49.1]} 10... Be6 {[%clk 0:02:44.6]} 11. Qc2
{[%clk 0:02:49.6]} 11... Qc7 {[%clk 0:02:40.6]} 12. Re1 {[%clk 0:02:50.1]} 12...
a6 {[%clk 0:02:35.8]} 13. Bf1 {[%clk 0:02:49.3]} 13... Rab8 {[%clk 0:02:34.5]}
14. Bc4 {[%clk 0:02:47]} 14... Bxc4 {[%clk 0:02:31.7]} 15. Nxc4 {[%clk
0:02:47.5]} 15... b5 {[%clk 0:02:33.3]} 16. axb5 {[%clk 0:02:48.4]} 16... axb5
{[%clk 0:02:35.2]} 17. Ne3 {[%clk 0:02:50]} 17... Bd6 {[%clk 0:02:14.5]} 18. Nf5
{[%clk 0:02:48.4]} 18... Ne7 {[%clk 0:02:15.3]} 19. N3h4 {[%clk 0:02:48.3]}
19... Nxf5 {[%clk 0:02:00.6]} 20. Nxf5 {[%clk 0:02:48.9]} 20... h5 {[%clk
0:02:01.9]} 21. Qe2 {[%clk 0:02:46.9]} 21... g6 {[%clk 0:02:02.6]} 22. Bg5
{[%clk 0:02:42.1]} 22... Nh7 {[%clk 0:01:55]} 23. Nxd6 {[%clk 0:02:31.1]} 23...
Nxg5 {[%clk 0:01:48.7]} 24. Nxb5 {[%clk 0:02:29.9]} 24... Qd7 {[%clk 0:01:22.9]}
25. c4 {[%clk 0:02:28.9]} 25... Ne6 {[%clk 0:01:08.5]} 26. h4 {[%clk 0:02:23.5]}
26... Nd4 {[%clk 0:01:05]} 27. Nxd4 {[%clk 0:02:24]} 27... cxd4 {[%clk
0:01:06.3]} 28. Ra5 {[%clk 0:02:18.7]} 28... Qc7 {[%clk 0:01:03.9]} 29. Rd5
{[%clk 0:02:17.6]} 29... Rfc8 {[%clk 0:01:04.1]} 30. Rc1 {[%clk 0:02:15.5]}
30... f6 {[%clk 0:01:02.2]} 31. c5 {[%clk 0:02:16]} 31... Qb7 {[%clk 0:01:00.1]}
32. Rd6 {[%clk 0:02:11.3]} 32... Kg7 {[%clk 0:01:00]} 33. Qc4 {[%clk 0:02:08.9]}
33... Rc7 {[%clk 0:00:28.9]} 34. Qe6 {[%clk 0:01:49.7]} 34... Rf7 {[%clk
0:00:26.9]} 35. c6 {[%clk 0:01:44]} 35... Qxb2 {[%clk 0:00:27.3]} 36. Rf1 {[%clk
0:01:44.8]} 36... Qc3 {[%clk 0:00:24.6]} 37. Rd7 {[%clk 0:01:41.3]} 37... Rf8
{[%clk 0:00:23.6]} 38. Rb1 {[%clk 0:01:34.9]} 38... d3 {[%clk 0:00:23.2]} 39.
Rbb7 {[%clk 0:01:29.7]} 39... Qe1+ {[%clk 0:00:21.9]} 40. Kg2 {[%clk 0:01:30.4]}
40... Qxe4+ {[%clk 0:00:22.9]} 41. Kh2 {[%clk 0:01:31.1]} 41... Rxd7 {[%clk
0:00:21.6]} 42. Qxd7+ {[%clk 0:01:31.5]} 1-0

[Event "*** Titled Tuesday Blitz"]
[Site "Chess.com"]
[Date "2020.02.04"]
[Round "2"]
[White "severomorskij"]
[Black "Rud_Makarian"]
[Result "1-0"]
[WhiteElo "2874"]
[BlackElo "2604"]
[TimeControl "180+2"]
[EndTime "9:22:23 PST"]
[Termination "severomorskij won by resignation"]

1. d4 {[%clk 0:03:01.9]} 1... Nf6 {[%clk 0:02:59.7]} 2. c4 {[%clk 0:03:01.9]}
2... g6 {[%clk 0:03:01.6]} 3. Nc3 {[%clk 0:03:03]} 3... Bg7 {[%clk 0:03:02.2]}
4. e4 {[%clk 0:03:04.2]} 4... d6 {[%clk 0:03:01.5]} 5. Bd3 {[%clk 0:03:05.3]}
5... c5 {[%clk 0:02:53.7]} 6. d5 {[%clk 0:03:05.3]} 6... O-O {[%clk 0:02:53.7]}
7. Nge2 {[%clk 0:03:05.9]} 7... e6 {[%clk 0:02:54.9]} 8. Bg5 {[%clk 0:03:06.8]}
8... exd5 {[%clk 0:02:46.7]} 9. exd5 {[%clk 0:03:06.2]} 9... Re8 {[%clk
0:02:44.4]} 10. O-O {[%clk 0:02:58.6]} 10... Nbd7 {[%clk 0:02:45.6]} 11. f4
{[%clk 0:02:59.2]} 11... Qe7 {[%clk 0:02:42.3]} 12. h3 {[%clk 0:02:50]} 12...
Qf8 {[%clk 0:02:10.9]} 13. Qd2 {[%clk 0:02:43.6]} 13... a6 {[%clk 0:01:57.4]}
14. a4 {[%clk 0:02:37.7]} 14... Bh6 {[%clk 0:01:46.6]} 15. Ng3 {[%clk
0:02:29.1]} 15... Kh8 {[%clk 0:01:25.5]} 16. Rae1 {[%clk 0:02:12]} 16... Bxg5
{[%clk 0:01:24.4]} 17. fxg5 {[%clk 0:02:09.5]} 17... Ng8 {[%clk 0:01:24.8]} 18.
Rxe8 {[%clk 0:02:05.4]} 18... Qxe8 {[%clk 0:01:26.7]} 19. Nce4 {[%clk
0:01:40.8]} 19... Qe5 {[%clk 0:00:59.3]} 20. Rxf7 {[%clk 0:01:33.9]} 20... Nb6
{[%clk 0:00:42.2]} 21. b3 {[%clk 0:01:07.6]} 21... Bf5 {[%clk 0:00:20.4]} 22.
Rxb7 {[%clk 0:00:36.7]} 22... Nd7 {[%clk 0:00:16.2]} 23. Nxf5 {[%clk 0:00:19.9]}
23... gxf5 {[%clk 0:00:18.1]} 24. Nf2 {[%clk 0:00:16.4]} 24... Nf8 {[%clk
0:00:18.7]} 25. Qe2 {[%clk 0:00:14.7]} 25... Qa1+ {[%clk 0:00:18.3]} 26. Kh2
{[%clk 0:00:15.2]} 26... Ng6 {[%clk 0:00:19.1]} 27. Bxf5 {[%clk 0:00:15.5]}
27... Rf8 {[%clk 0:00:18.8]} 28. Bxg6 {[%clk 0:00:16]} 28... hxg6 {[%clk
0:00:19.2]} 29. Qe4 {[%clk 0:00:16.9]} 29... Rxf2 {[%clk 0:00:18.1]} 30. Qh4+
{[%clk 0:00:17.8]} 1-0

[Event "*** Titled Tuesday Blitz"]
[Site "Chess.com"]
[Date "2020.02.04"]
[Round "2"]
[White "W_Amadeus"]
[Black "Carnivoras"]
[Result "1-0"]
[WhiteElo "2747"]
[BlackElo "2545"]
[TimeControl "180+2"]
[EndTime "9:22:26 PST"]
[Termination "W_Amadeus won by checkmate"]

1. e4 {[%clk 0:03:01.9]} 1... c5 {[%clk 0:03:00.7]} 2. Nf3 {[%clk 0:03:02.7]}
2... d6 {[%clk 0:03:01.7]} 3. d4 {[%clk 0:03:03.9]} 3... cxd4 {[%clk 0:03:02.8]}
4. Nxd4 {[%clk 0:03:05.8]} 4... Nf6 {[%clk 0:03:03.9]} 5. Nc3 {[%clk 0:03:07.4]}
5... a6 {[%clk 0:03:04.9]} 6. Be3 {[%clk 0:03:09]} 6... e6 {[%clk 0:03:03.8]} 7.
f3 {[%clk 0:03:09.3]} 7... Be7 {[%clk 0:03:04.3]} 8. Qd2 {[%clk 0:03:09.8]} 8...
O-O {[%clk 0:03:03]} 9. O-O-O {[%clk 0:03:10.7]} 9... b5 {[%clk 0:03:03.6]} 10.
g4 {[%clk 0:03:11.3]} 10... Bb7 {[%clk 0:02:59.6]} 11. g5 {[%clk 0:03:09.5]}
11... Nfd7 {[%clk 0:03:00.7]} 12. h4 {[%clk 0:03:09.7]} 12... Nc6 {[%clk
0:02:54.9]} 13. Nxc6 {[%clk 0:03:03.5]} 13... Bxc6 {[%clk 0:02:55.6]} 14. h5
{[%clk 0:02:26.4]} 14... b4 {[%clk 0:02:54.2]} 15. Ne2 {[%clk 0:02:26.5]} 15...
d5 {[%clk 0:02:54.5]} 16. Nd4 {[%clk 0:02:20.9]} 16... Bb7 {[%clk 0:02:51.8]}
17. g6 {[%clk 0:02:16.1]} 17... Bf6 {[%clk 0:02:41.5]} 18. gxf7+ {[%clk
0:01:23]} 18... Rxf7 {[%clk 0:02:34.6]} 19. Nxe6 {[%clk 0:01:00.1]} 19... Qa5
{[%clk 0:02:33.8]} 20. Kb1 {[%clk 0:00:58.9]} 20... dxe4 {[%clk 0:02:29.9]} 21.
Bc4 {[%clk 0:00:33]} 21... Kh8 {[%clk 0:01:24.1]} 22. h6 {[%clk 0:00:30.1]}
22... Ne5 {[%clk 0:00:45.5]} 23. hxg7+ {[%clk 0:00:22]} 23... Bxg7 {[%clk
0:00:31.1]} 24. Nxg7 {[%clk 0:00:11]} 24... Nxc4 {[%clk 0:00:18.6]} 25. Qh2
{[%clk 0:00:06.5]} 25... Rxg7 {[%clk 0:00:17.6]} 26. Bd4 {[%clk 0:00:07.6]}
26... Qg5 {[%clk 0:00:13.6]} 27. Qxh7# {[%clk 0:00:06.1]} 1-0

[Event "*** Titled Tuesday Blitz"]
[Site "Chess.com"]
[Date "2020.02.04"]
[Round "2"]
[White "cottage_cheese"]
[Black "WeAintSurePal"]
[Result "1-0"]
[WhiteElo "2463"]
[BlackElo "2422"]
[TimeControl "180+2"]
[EndTime "9:22:32 PST"]
[Termination "cottage_cheese won by resignation"]

1. e4 {[%clk 0:03:01.9]} 1... c6 {[%clk 0:02:59.8]} 2. d4 {[%clk 0:03:01.8]}
2... d5 {[%clk 0:03:00.8]} 3. Nd2 {[%clk 0:03:03.1]} 3... dxe4 {[%clk
0:03:01.8]} 4. Nxe4 {[%clk 0:03:03.1]} 4... Nf6 {[%clk 0:03:03.2]} 5. Nxf6+
{[%clk 0:03:03.3]} 5... exf6 {[%clk 0:03:05.1]} 6. c3 {[%clk 0:03:03.8]} 6...
Bd6 {[%clk 0:03:06.1]} 7. Bd3 {[%clk 0:03:04.2]} 7... O-O {[%clk 0:03:07.5]} 8.
Qc2 {[%clk 0:03:03.1]} 8... Re8+ {[%clk 0:03:08.9]} 9. Ne2 {[%clk 0:03:03.5]}
9... h5 {[%clk 0:03:10.3]} 10. Be3 {[%clk 0:02:54.2]} 10... Nd7 {[%clk
0:03:10.1]} 11. O-O {[%clk 0:02:35.5]} 11... Nf8 {[%clk 0:03:08.7]} 12. Rfe1
{[%clk 0:02:19.2]} 12... Qc7 {[%clk 0:03:08.6]} 13. h3 {[%clk 0:02:04.8]} 13...
Be6 {[%clk 0:03:06.6]} 14. c4 {[%clk 0:01:52.4]} 14... Qd7 {[%clk 0:03:05.7]}
15. Rad1 {[%clk 0:01:49.2]} 15... Rac8 {[%clk 0:03:05.6]} 16. Bf4 {[%clk
0:01:28.6]} 16... h4 {[%clk 0:02:50.5]} 17. Bxd6 {[%clk 0:01:23.1]} 17... Qxd6
{[%clk 0:02:52.4]} 18. Nc3 {[%clk 0:01:23.5]} 18... Qd7 {[%clk 0:02:49]} 19. Ne4
{[%clk 0:01:17.1]} 19... b6 {[%clk 0:02:46.3]} 20. Bf1 {[%clk 0:01:11.2]} 20...
Ng6 {[%clk 0:02:46.4]} 21. Nc3 {[%clk 0:00:50.7]} 21... Bf5 {[%clk 0:02:43.9]}
22. Qd2 {[%clk 0:00:47.9]} 22... Rcd8 {[%clk 0:02:29.8]} 23. Rxe8+ {[%clk
0:00:42.5]} 23... Rxe8 {[%clk 0:02:31.7]} 24. d5 {[%clk 0:00:39.9]} 24... Ne5
{[%clk 0:02:31.4]} 25. b3 {[%clk 0:00:29.6]} 25... Bg6 {[%clk 0:01:41.5]} 26.
dxc6 {[%clk 0:00:28.9]} 26... Qxc6 {[%clk 0:01:41.4]} 27. Nd5 {[%clk 0:00:28.3]}
27... Bf5 {[%clk 0:01:32.8]} 28. Qf4 {[%clk 0:00:28.7]} 28... Bg6 {[%clk
0:01:22.7]} 29. Qxh4 {[%clk 0:00:29.7]} 29... a6 {[%clk 0:01:18.9]} 30. f4
{[%clk 0:00:25.9]} 30... Nd7 {[%clk 0:01:16.3]} 31. Qf2 {[%clk 0:00:25.3]} 31...
Be4 {[%clk 0:01:11.2]} 32. Be2 {[%clk 0:00:20]} 32... Nc5 {[%clk 0:01:11.8]} 33.
Bf3 {[%clk 0:00:19.8]} 33... Bxf3 {[%clk 0:01:12.3]} 34. Qxf3 {[%clk 0:00:20.7]}
34... Qb7 {[%clk 0:01:08.2]} 35. Qg4 {[%clk 0:00:17.8]} 35... Ne4 {[%clk
0:01:02.8]} 36. Re1 {[%clk 0:00:17]} 36... Kf8 {[%clk 0:01:00.7]} 37. Qf5 {[%clk
0:00:17.4]} 37... Nd6 {[%clk 0:00:59.8]} 38. Rxe8+ {[%clk 0:00:18]} 38... Nxe8
{[%clk 0:00:59.4]} 39. Qh7 {[%clk 0:00:18.4]} 1-0

[Event "*** Titled Tuesday Blitz"]
[Site "Chess.com"]
[Date "2020.02.04"]
[Round "2"]
[White "ChessPromotionAlex"]
[Black "Nathan_Filgueiras"]
[Result "1-0"]
[WhiteElo "2529"]
[BlackElo "2262"]
[TimeControl "180+2"]
[EndTime "9:22:43 PST"]
[Termination "ChessPromotionAlex won by resignation"]

1. e4 {[%clk 0:03:01.9]} 1... c5 {[%clk 0:03:00.4]} 2. Nf3 {[%clk 0:03:02.6]}
2... Nc6 {[%clk 0:02:59.8]} 3. d4 {[%clk 0:03:03.9]} 3... cxd4 {[%clk
0:03:01.7]} 4. Nxd4 {[%clk 0:03:05.5]} 4... e5 {[%clk 0:03:03.4]} 5. Nb5 {[%clk
0:03:05.9]} 5... d6 {[%clk 0:03:04.3]} 6. N1c3 {[%clk 0:03:07.2]} 6... a6 {[%clk
0:03:05.3]} 7. Na3 {[%clk 0:03:08.5]} 7... b5 {[%clk 0:03:06.8]} 8. Nd5 {[%clk
0:03:09.3]} 8... Nce7 {[%clk 0:03:08.2]} 9. c4 {[%clk 0:03:10.7]} 9... Nxd5
{[%clk 0:03:09.1]} 10. exd5 {[%clk 0:03:12.6]} 10... bxc4 {[%clk 0:03:09.9]} 11.
Nxc4 {[%clk 0:03:14.5]} 11... Nf6 {[%clk 0:03:11.5]} 12. Be3 {[%clk 0:03:15]}
12... Rb8 {[%clk 0:03:10.8]} 13. Be2 {[%clk 0:03:14.9]} 13... Be7 {[%clk
0:03:12.2]} 14. O-O {[%clk 0:03:11.7]} 14... O-O {[%clk 0:03:13.7]} 15. a4
{[%clk 0:03:11.9]} 15... Bb7 {[%clk 0:03:13.4]} 16. Nb6 {[%clk 0:03:12.9]} 16...
Nd7 {[%clk 0:03:08.9]} 17. a5 {[%clk 0:03:07.6]} 17... Nxb6 {[%clk 0:03:09.5]}
18. Bxb6 {[%clk 0:02:59.7]} 18... Qe8 {[%clk 0:03:02.5]} 19. b4 {[%clk
0:02:58.1]} 19... f5 {[%clk 0:02:51.6]} 20. Qb3 {[%clk 0:02:50.9]} 20... Bd8
{[%clk 0:02:45.8]} 21. Rfc1 {[%clk 0:02:31.4]} 21... Bxb6 {[%clk 0:02:42.6]} 22.
axb6 {[%clk 0:02:31.8]} 22... e4 {[%clk 0:01:24]} 23. Bxa6 {[%clk 0:01:53.8]}
23... f4 {[%clk 0:01:24.2]} 24. Bxb7 {[%clk 0:01:48.5]} 24... Rxb7 {[%clk
0:01:24.8]} 25. Rc6 {[%clk 0:01:49.6]} 25... f3 {[%clk 0:00:50.1]} 26. Re1
{[%clk 0:01:29.3]} 26... fxg2 {[%clk 0:00:23.7]} 27. Qe3 {[%clk 0:00:58.7]}
27... Re7 {[%clk 0:00:24.3]} 28. Rc7 {[%clk 0:00:55]} 28... Re5 {[%clk
0:00:22.6]} 29. Qg3 {[%clk 0:00:43]} 29... g6 {[%clk 0:00:19.7]} 30. Qh3 {[%clk
0:00:34.8]} 30... Rf7 {[%clk 0:00:18.5]} 31. Rc8 {[%clk 0:00:34.4]} 31... e3
{[%clk 0:00:19]} 32. Rxe8+ {[%clk 0:00:29.5]} 32... Rxe8 {[%clk 0:00:20.9]} 33.
Rxe3 {[%clk 0:00:30.2]} 33... Rxe3 {[%clk 0:00:20.8]} 34. Qxe3 {[%clk
0:00:30.2]} 1-0

[Event "*** Titled Tuesday Blitz"]
[Site "Chess.com"]
[Date "2020.02.04"]
[Round "2"]
[White "Nikolakis2014"]
[Black "MisiekZielony"]
[Result "1-0"]
[WhiteElo "2706"]
[BlackElo "2344"]
[TimeControl "180+2"]
[EndTime "9:22:58 PST"]
[Termination "Nikolakis2014 won by resignation"]

1. Nf3 {[%clk 0:03:01.9]} 1... Nf6 {[%clk 0:02:58.7]} 2. c4 {[%clk 0:03:02.2]}
2... g6 {[%clk 0:02:59.2]} 3. g3 {[%clk 0:03:02.5]} 3... Bg7 {[%clk 0:02:59.1]}
4. Bg2 {[%clk 0:03:03.7]} 4... c6 {[%clk 0:02:59.9]} 5. O-O {[%clk 0:03:04]}
5... d5 {[%clk 0:03:00.8]} 6. d4 {[%clk 0:03:02.7]} 6... O-O {[%clk 0:02:59.9]}
7. Ne5 {[%clk 0:03:02.5]} 7... Ng4 {[%clk 0:02:38.5]} 8. cxd5 {[%clk 0:03:00.5]}
8... cxd5 {[%clk 0:02:36.8]} 9. Nd3 {[%clk 0:03:01.5]} 9... Nc6 {[%clk
0:02:33.6]} 10. Nc3 {[%clk 0:02:53.8]} 10... Nf6 {[%clk 0:02:32.9]} 11. Ne5
{[%clk 0:02:49.8]} 11... e6 {[%clk 0:02:28.4]} 12. Nxc6 {[%clk 0:02:48.3]} 12...
bxc6 {[%clk 0:02:28.2]} 13. Bf4 {[%clk 0:02:48.9]} 13... Nd7 {[%clk 0:02:10.7]}
14. Rc1 {[%clk 0:02:40.9]} 14... Qb6 {[%clk 0:01:54.1]} 15. Na4 {[%clk
0:01:48.8]} 15... Qxd4 {[%clk 0:01:52.9]} 16. Bd6 {[%clk 0:01:47.7]} 16... Qxd1
{[%clk 0:01:23.5]} 17. Rfxd1 {[%clk 0:01:46.6]} 17... Re8 {[%clk 0:01:22]} 18.
Rxc6 {[%clk 0:01:29.6]} 18... Nb6 {[%clk 0:01:11.4]} 19. Nxb6 {[%clk 0:01:06.1]}
19... axb6 {[%clk 0:01:11.3]} 20. Ba3 {[%clk 0:01:06.8]} 20... Bf8 {[%clk
0:00:50.8]} 21. Bxf8 {[%clk 0:01:04.6]} 21... Kxf8 {[%clk 0:00:51.8]} 22. a3
{[%clk 0:01:05.1]} 22... b5 {[%clk 0:00:51.7]} 23. Rb6 {[%clk 0:01:01.3]} 23...
Bd7 {[%clk 0:00:43.2]} 24. e4 {[%clk 0:01:01.5]} 24... Rab8 {[%clk 0:00:23.4]}
25. Rxb8 {[%clk 0:01:02.1]} 25... Rxb8 {[%clk 0:00:23]} 26. exd5 {[%clk
0:01:03.5]} 26... b4 {[%clk 0:00:23.4]} 27. dxe6 {[%clk 0:01:04.5]} 27... Bxe6
{[%clk 0:00:24.1]} 28. a4 {[%clk 0:01:05]} 28... b3 {[%clk 0:00:22.6]} 29. a5
{[%clk 0:01:00.1]} 29... Rb5 {[%clk 0:00:22.8]} 30. Ra1 {[%clk 0:00:59.7]} 30...
Bd5 {[%clk 0:00:18.4]} 31. Bxd5 {[%clk 0:00:54]} 31... Rxd5 {[%clk 0:00:18.5]}
32. a6 {[%clk 0:00:55.2]} 32... Rd8 {[%clk 0:00:18.8]} 33. Kf1 {[%clk
0:00:56.4]} 33... Ke8 {[%clk 0:00:18.3]} 34. Ke2 {[%clk 0:00:56.9]} 34... Ra8
{[%clk 0:00:17]} 35. Kd3 {[%clk 0:00:57]} 35... Kd7 {[%clk 0:00:18.1]} 36. Kc4
{[%clk 0:00:57.9]} 36... Kc7 {[%clk 0:00:18.9]} 37. Kxb3 {[%clk 0:00:54.8]}
37... Ra7 {[%clk 0:00:19.9]} 38. Kc4 {[%clk 0:00:55]} 38... Kb8 {[%clk
0:00:20.8]} 39. b4 {[%clk 0:00:55.1]} 39... Rc7+ {[%clk 0:00:21.5]} 40. Kb5
{[%clk 0:00:54.4]} 40... Ka7 {[%clk 0:00:22.5]} 41. Rd1 {[%clk 0:00:54.1]} 41...
Re7 {[%clk 0:00:21.7]} 42. Ka5 {[%clk 0:00:51.6]} 1-0

[Event "*** Titled Tuesday Blitz"]
[Site "Chess.com"]
[Date "2020.02.04"]
[Round "2"]
[White "HouseOfDurin"]
[Black "MasterKroket"]
[Result "0-1"]
[WhiteElo "2069"]
[BlackElo "2410"]
[TimeControl "180+2"]
[EndTime "9:23:03 PST"]
[Termination "MasterKroket won on time"]

1. d4 {[%clk 0:03:01.9]} 1... Nf6 {[%clk 0:03:00.8]} 2. Bg5 {[%clk 0:03:02.4]}
2... Ne4 {[%clk 0:02:59.6]} 3. h4 {[%clk 0:03:03.1]} 3... Nxg5 {[%clk
0:02:58.1]} 4. hxg5 {[%clk 0:03:05]} 4... g6 {[%clk 0:02:59.6]} 5. Nf3 {[%clk
0:03:05.7]} 5... Bg7 {[%clk 0:03:00.8]} 6. e3 {[%clk 0:03:04.5]} 6... c5 {[%clk
0:03:00.2]} 7. c3 {[%clk 0:03:04.3]} 7... b6 {[%clk 0:02:56.3]} 8. Nbd2 {[%clk
0:02:57.9]} 8... Bb7 {[%clk 0:02:57.2]} 9. Bd3 {[%clk 0:02:56.5]} 9... d6 {[%clk
0:02:53.4]} 10. Qc2 {[%clk 0:02:56]} 10... Nd7 {[%clk 0:02:54]} 11. O-O-O {[%clk
0:02:56.1]} 11... Rc8 {[%clk 0:02:52.5]} 12. Rh4 {[%clk 0:02:41.9]} 12... e5
{[%clk 0:02:48.6]} 13. dxe5 {[%clk 0:02:32]} 13... Nxe5 {[%clk 0:02:47.7]} 14.
Bb5+ {[%clk 0:01:19.9]} 14... Kf8 {[%clk 0:02:47.8]} 15. Nxe5 {[%clk 0:01:17.4]}
15... Bxe5 {[%clk 0:02:43.4]} 16. f4 {[%clk 0:01:17.5]} 16... Bg7 {[%clk
0:02:42.2]} 17. Rdh1 {[%clk 0:01:11.2]} 17... Bxg2 {[%clk 0:02:36.8]} 18. R1h2
{[%clk 0:00:59.5]} 18... Bb7 {[%clk 0:02:37.2]} 19. Rxh7 {[%clk 0:00:45.7]}
19... Rxh7 {[%clk 0:02:39.1]} 20. Rxh7 {[%clk 0:00:47.3]} 20... Qe7 {[%clk
0:02:40.6]} 21. e4 {[%clk 0:00:33.6]} 21... Qe6 {[%clk 0:02:39.1]} 22. Bc4
{[%clk 0:00:24.9]} 22... Qg4 {[%clk 0:02:36.8]} 23. Qb3 {[%clk 0:00:25.1]} 23...
Qxf4 {[%clk 0:02:33.7]} 24. Rh1 {[%clk 0:00:21]} 24... Rc7 {[%clk 0:02:22.8]}
25. Rf1 {[%clk 0:00:21.3]} 25... Qxg5 {[%clk 0:02:13]} 26. Bxf7 {[%clk
0:00:21.9]} 26... c4 {[%clk 0:01:20.7]} 27. Bxc4+ {[%clk 0:00:10.8]} 27... Ke8
{[%clk 0:01:22.1]} 28. Bf7+ {[%clk 0:00:07.7]} 28... Kd8 {[%clk 0:01:23.7]} 29.
Qe6 {[%clk 0:00:07.8]} 29... Re7 {[%clk 0:01:08.5]} 30. Qxd6+ {[%clk 0:00:08.1]}
30... Rd7 {[%clk 0:01:10.1]} 31. Qb8+ {[%clk 0:00:05.9]} 31... Bc8 {[%clk
0:01:11.5]} 32. Bd5 {[%clk 0:00:04.7]} 32... Bh6 {[%clk 0:01:06.7]} 33. Qh2
{[%clk 0:00:03.8]} 33... Bb7 {[%clk 0:01:00.6]} 34. Kc2 {[%clk 0:00:04.3]} 34...
Bxd5 {[%clk 0:01:00.8]} 35. exd5 {[%clk 0:00:06.2]} 35... Kc8 {[%clk 0:00:35.3]}
36. Rd1 {[%clk 0:00:02.9]} 36... Rxd5 {[%clk 0:00:35]} 37. Nb3 {[%clk
0:00:03.3]} 37... Qf5+ {[%clk 0:00:31.1]} 0-1

[Event "*** Titled Tuesday Blitz"]
[Site "Chess.com"]
[Date "2020.02.04"]
[Round "2"]
[White "VincentKeymer"]
[Black "Bigfish1995"]
[Result "1/2-1/2"]
[WhiteElo "2697"]
[BlackElo "3051"]
[TimeControl "180+2"]
[EndTime "9:23:18 PST"]
[Termination "Game drawn by repetition"]

1. Nf3 {[%clk 0:03:01.9]} 1... d5 {[%clk 0:03:00]} 2. e3 {[%clk 0:03:02]} 2...
c5 {[%clk 0:02:59.8]} 3. b3 {[%clk 0:03:03]} 3... a6 {[%clk 0:02:53]} 4. Bb2
{[%clk 0:03:03.8]} 4... Nc6 {[%clk 0:02:53.3]} 5. d4 {[%clk 0:03:04.8]} 5... Bg4
{[%clk 0:02:50.8]} 6. dxc5 {[%clk 0:02:55.7]} 6... e5 {[%clk 0:02:50.3]} 7. h3
{[%clk 0:02:47.5]} 7... Bxf3 {[%clk 0:02:48.3]} 8. Qxf3 {[%clk 0:02:46.8]} 8...
Nf6 {[%clk 0:02:38.9]} 9. Nc3 {[%clk 0:02:39.4]} 9... e4 {[%clk 0:01:40.5]} 10.
Qg3 {[%clk 0:02:20.8]} 10... Nh5 {[%clk 0:01:16.8]} 11. Qh2 {[%clk 0:02:15.7]}
11... Bxc5 {[%clk 0:00:55.3]} 12. O-O-O {[%clk 0:01:59.9]} 12... Bd6 {[%clk
0:00:56.2]} 13. Qg1 {[%clk 0:01:48]} 13... Nf6 {[%clk 0:00:54.9]} 14. Nxd5
{[%clk 0:01:41.9]} 14... Nxd5 {[%clk 0:00:55.5]} 15. Rxd5 {[%clk 0:01:43.5]}
15... Qc7 {[%clk 0:00:54.4]} 16. Bc4 {[%clk 0:01:37.4]} 16... b5 {[%clk
0:00:44.5]} 17. Qd1 {[%clk 0:01:14.9]} 17... O-O-O {[%clk 0:00:42.5]} 18. Qg4+
{[%clk 0:00:57.6]} 18... Kb8 {[%clk 0:00:33.9]} 19. Bxb5 {[%clk 0:00:37.8]}
19... Nb4 {[%clk 0:00:21.1]} 20. Bc4 {[%clk 0:00:39]} 20... Nxd5 {[%clk
0:00:21.5]} 21. Bxd5 {[%clk 0:00:39.8]} 21... Ba3 {[%clk 0:00:17.1]} 22. Bxa3
{[%clk 0:00:38.4]} 22... Rxd5 {[%clk 0:00:17.6]} 23. Qxe4 {[%clk 0:00:40.1]}
23... Rhd8 {[%clk 0:00:17.9]} 24. Bb2 {[%clk 0:00:32.7]} 24... f5 {[%clk
0:00:11]} 25. Qb4+ {[%clk 0:00:32.3]} 25... Ka8 {[%clk 0:00:11.2]} 26. Bd4
{[%clk 0:00:32.4]} 26... f4 {[%clk 0:00:12.6]} 27. c4 {[%clk 0:00:31.4]} 27...
fxe3 {[%clk 0:00:13.2]} 28. fxe3 {[%clk 0:00:33.3]} 28... Qc8 {[%clk 0:00:07.4]}
29. Kb2 {[%clk 0:00:32.1]} 29... R5d6 {[%clk 0:00:07.8]} 30. Rf1 {[%clk
0:00:31.6]} 30... Qc6 {[%clk 0:00:08.1]} 31. Rf7 {[%clk 0:00:24.9]} 31... Qxg2+
{[%clk 0:00:08.8]} 32. Ka3 {[%clk 0:00:26]} 32... R6d7 {[%clk 0:00:09.8]} 33.
Rxd7 {[%clk 0:00:19.1]} 33... Rxd7 {[%clk 0:00:10.7]} 34. Qc5 {[%clk 0:00:16.1]}
34... Qb7 {[%clk 0:00:09.1]} 35. Qf8+ {[%clk 0:00:13.5]} 35... Qb8 {[%clk
0:00:09.6]} 36. Qf3+ {[%clk 0:00:15.2]} 36... Qb7 {[%clk 0:00:10.9]} 37. Qf8+
{[%clk 0:00:16.2]} 37... Qb8 {[%clk 0:00:12]} 38. Qf3+ {[%clk 0:00:17.3]} 38...
Qb7 {[%clk 0:00:08.1]} 39. Qf8+ {[%clk 0:00:18.2]} 1/2-1/2